fUST/lending_fUST_20250514
["ID","MTS","AMOUNT","RATE_DAILY","PERIOD"]
[360957019,1747162253288,-400.0,0.00013972,2]
[360957020,1747162253298,-470.83,0.00013972,2]
[360957021,1747162253308,-859.14,0.00013972,2]
[360957022,1747162253317,-400.0,0.00013972,2]
[360957023,1747162253327,-400.0,0.00013972,2]
[360957024,1747162253337,-400.0,0.00013972,2]
[360957025,1747162253346,-503.83,0.00013972,2]
[360957026,1747162253357,-400.0,0.00013972,2]
[360957027,1747162253367,-400.0,0.00013972,2]
[360957028,1747162253376,-1017.07,0.00013972,2]
[360957029,1747162253387,-400.0,0.00013972,2]
[360957030,1747162253398,-414.95,0.00013972,2]
[360957031,1747162253408,-428.02,0.00013972,2]
[360957032,1747162253418,-345.431099,0.00013972,2]
[360957033,1747162253429,-345.431099,0.00013972,2]
[360957034,1747162253438,-345.431099,0.00013972,2]
[360957035,1747162253449,-1588.56,0.00013972,2]
[360957036,1747162253459,-345.431099,0.00013972,2]
[360957037,1747162253469,-609.08,0.00013972,2]
[360957038,1747162253480,-345.431099,0.00013972,2]
[360957039,1747162253490,-345.431099,0.00013972,2]
[360957040,1747162253500,-400.0,0.00013972,2]
[360957041,1747162253510,-471.09,0.00013972,2]
[360957042,1747162253519,-459.52,0.00013972,2]
[360957043,1747162253530,-400.0,0.00013972,2]
[360957044,1747162253540,-1106.24,0.00013972,2]
[360957045,1747162253550,-400.0,0.00013972,2]
[360957046,1747162253560,-400.0,0.00013972,2]
[360957047,1747162253570,-1176.75,0.00013972,2]
[360957048,1747162253580,-400.0,0.00013972,2]
[360957049,1747162253589,-454.15,0.00013972,2]
[360957050,1747162253599,-596.21,0.00013972,2]
[360957051,1747162253609,-500.0,0.00013972,2]
[360957052,1747162253620,-400.0,0.00013972,2]
[360957053,1747162253702,-1905.77,0.00013972,2]
[360957054,1747162253712,-400.0,0.00013972,2]
[360957055,1747162253721,-895.69,0.00013972,2]
[360957056,1747162253731,-1047.52,0.00013972,2]
[360957057,1747162253740,-256.190754,0.00013972,2]
[360957058,1747162253750,-400.0,0.00013972,2]
[360957059,1747162253760,-256.190754,0.00013972,2]
[360957060,1747162253770,-256.190754,0.00013972,2]
[360957061,1747162253780,-740.32,0.00013972,2]
[360957062,1747162253789,-400.0,0.00013972,2]
[360957063,1747162253801,-256.190754,0.00013972,2]
[360957064,1747162253811,-256.190754,0.00013972,2]
[360957065,1747162253821,-256.190754,0.00013972,2]
[360957066,1747162253831,-3158.76,0.00013972,2]
[360957067,1747162253840,-359.49775045,0.00013972,2]
[360957068,1747162253851,-2122.66,0.00013972,2]
[360957069,1747162253861,-793.38,0.00013972,2]
[360957070,1747162253871,-400.0,0.00013972,2]
[360957071,1747162253881,-541.96402328,0.00013972,2]
[360957072,1747162253895,-400.0,0.00013972,2]
[360957073,1747162253905,-1959.67,0.00013972,2]
[360957074,1747162253915,-400.0,0.00013972,2]
[360957075,1747162253927,-405.04,0.00013972,2]
[360957076,1747162253937,-1039.61,0.00013972,2]
[360957077,1747162253946,-400.0,0.00013972,2]
[360957078,1747162253955,-400.0,0.00013972,2]
[360957079,1747162253966,-501.74,0.00013972,2]
[360957080,1747162253977,-602.14,0.00013972,2]
[360957081,1747162253986,-400.0,0.00013972,2]
[360957082,1747162253996,-1410.34,0.00013972,2]
[360957083,1747162254006,-3306.55,0.00013972,2]
[360957084,1747162254016,-400.0,0.00013972,2]
[360957085,1747162254026,-988.29,0.00013972,2]
[360957086,1747162254036,-544.07,0.00013972,2]
[360957087,1747162254045,-478.47,0.00013972,2]
[360957088,1747162254055,-400.0,0.00013972,2]
[360957089,1747162254064,-400.0,0.00013972,2]
[360957090,1747162254074,-400.0,0.00013972,2]
[360957091,1747162254083,-183.02224292,0.00013972,2]
[360957092,1747162254093,-936.32,0.00013972,2]
[360957093,1747162254103,-400.0,0.00013972,2]
[360957094,1747162254112,-1000.0,0.00013972,2]
[360957095,1747162254122,-400.0,0.00013972,2]
[360957096,1747162254131,-1378.0,0.00013972,2]
[360957097,1747162254141,-400.0,0.00013972,2]
[360957098,1747162254151,-436.55,0.00013972,2]
[360957099,1747162254160,-400.0,0.00013972,2]
[360957100,1747162254170,-400.0,0.00013972,2]
[360957101,1747162254179,-2921.64,0.00013972,2]
[360957102,1747162254189,-2363.47,0.00013972,2]
[360957103,1747162254199,-544.16,0.00013972,2]
[360957104,1747162254208,-400.0,0.00013972,2]
[360957105,1747162254218,-400.0,0.00013972,2]
[360957106,1747162254228,-2882.99,0.00013972,2]
[360957107,1747162254237,-1800.83,0.00013972,2]
[360957108,1747162254247,-400.0,0.00013972,2]
[360957109,1747162254257,-1311.05,0.00013972,2]
[360957110,1747162254266,-930.86,0.00013972,2]
[360957111,1747162254277,-469.27,0.00013972,2]
[360957112,1747162254286,-400.0,0.00013972,2]
[360957113,1747162254296,-400.0,0.00013972,2]
[360957114,1747162254305,-400.0,0.00013972,2]
[360957115,1747162254315,-656.27,0.00013972,2]
[360957116,1747162254324,-400.0,0.00013972,2]
[360957117,1747162254334,-481.52619643,0.00013972,2]
[360957118,1747162254343,-151.0,0.00013972,2]
[360957119,1747162254353,-151.0,0.00013972,2]
[360957120,1747162254363,-400.0,0.00013972,2]
[360957121,1747162254374,-151.0,0.00013972,2]
[360957122,1747162254383,-400.0,0.00013972,2]
[360957123,1747162254392,-246.508285,0.00013972,2]
[360957124,1747162254402,-2203.31,0.00013972,2]
[360957125,1747162254412,-400.03,0.00013972,2]
[360957126,1747162254421,-3398.86,0.00013972,2]
[360957127,1747162254430,-853.24,0.00013972,2]
[360957128,1747162254440,-1027.26,0.00013972,2]
[360957129,1747162254450,-479.82,0.00013972,2]
[360957130,1747162254460,-512.86,0.00013972,2]
[360957131,1747162254469,-400.0,0.00013972,2]
[360957132,1747162254479,-3575.87,0.00013972,2]
[360957133,1747162254489,-400.0,0.00013972,2]
[360957134,1747162254499,-400.0,0.00013972,2]
[360957135,1747162254508,-425.66,0.00013972,2]
[360957136,1747162254518,-5666.09,0.00013972,2]
[360957137,1747162254527,-400.0,0.00013972,2]
[360957138,1747162254538,-712.01,0.00013972,2]
[360957139,1747162254548,-1372.98,0.00013972,2]
[360957140,1747162254558,-10999.36,0.00013972,2]
[360957141,1747162254568,-400.0,0.00013972,2]
[360957142,1747162254577,-466.78,0.00013972,2]
[360957143,1747162254586,-610.99,0.00013972,2]
[360957144,1747162254596,-400.0,0.00013972,2]
[360957145,1747162254606,-1655.68,0.00013972,2]
[360957146,1747162254615,-2127.53,0.00013972,2]
[360957147,1747162254625,-400.0,0.00013972,2]
[360957148,1747162254635,-400.0,0.00013972,2]
[360957149,1747162254644,-731.65,0.00013972,2]
[360957150,1747162254654,-400.0,0.00013972,2]
[360957151,1747162254664,-2245.32,0.00013972,2]
[360957152,1747162254674,-522.28,0.00013972,2]
[360957153,1747162254684,-579.52,0.00013972,2]
[360957154,1747162254695,-448.56,0.00013972,2]
[360957155,1747162254704,-151.0,0.00013972,2]
[360957156,1747162254714,-151.0,0.00013972,2]
[360957157,1747162254723,-636.38,0.00013972,2]
[360957158,1747162254733,-192.54390659,0.00013972,2]
[360957159,1747162254743,-259.40679874,0.00013972,2]
[360957160,1747162254753,-400.0,0.00013972,2]
[360957161,1747162254763,-400.0,0.00013972,2]
[360957162,1747162254772,-400.0,0.00013972,2]
[360957163,1747162254782,-496.36,0.00013972,2]
[360957164,1747162254791,-410.97,0.00013972,2]
[360957165,1747162254801,-406.41,0.00013972,2]
[360957166,1747162254811,-2627.37,0.00013972,2]
[360957167,1747162254820,-400.0,0.00013972,2]
[360957168,1747162254830,-400.0,0.00013972,2]
[360957169,1747162254839,-1048.2,0.00013972,2]
[360957170,1747162254849,-400.0,0.00013972,2]
[360957171,1747162254859,-19523.53,0.00013972,2]
[360957172,1747162254868,-850.06,0.00013972,2]
[360957173,1747162254879,-400.0,0.00013972,2]
[360957174,1747162254892,-400.0,0.00013972,2]
[360957175,1747162254901,-400.0,0.00013972,2]
[360957176,1747162254911,-658.14,0.00013972,2]
[360957177,1747162254920,-2475.64,0.00013972,2]
[360957178,1747162254930,-400.0,0.00013972,2]
[360957179,1747162254940,-552.27,0.00013972,2]
[360957180,1747162254950,-433.95,0.00013972,2]
[360957181,1747162254959,-5197.84,0.00013972,2]
[360957182,1747162254970,-2048.08543278,0.00013972,2]
[360957185,1747162952407,10000.0,0.0002,120]
[360957214,1747163226099,-5000.0,0.00012376,2]
[360957215,1747163226121,-254.5611619,0.00012567,2]
[360957216,1747163226141,-1451.5394968,0.00012627,2]
[360957217,1747163226162,-164.476756,0.00012714,2]
[360957218,1747163226183,-292.8786947,0.00013504,2]
[360957257,1747163432655,-5000.0,0.00013235,2]
[360957260,1747163432668,-300.0,0.00013503,2]
[360957262,1747163432680,-1200.0,0.00013503,2]
[360957264,1747163432693,-300.0,0.00013503,2]
[360957267,1747163432705,-500.0,0.00013504,2]
[360957269,1747163432717,-500.0,0.00013504,2]
[360957271,1747163432729,-500.0,0.00013504,2]
[360957274,1747163432742,-241.34296222,0.00013504,2]
[360957276,1747163432753,-1600.0,0.00013506,2]
[360957278,1747163432767,-160.0,0.00013589,2]
[360957281,1747163432779,-160.0,0.00013589,2]
[360957283,1747163432792,-422.24190663,0.00013589,2]
[360957285,1747163432805,-266.0187779,0.00013598,2]
[360957287,1747163432817,-500.0,0.00013673,2]
[360957290,1747163432830,-500.0,0.00013673,2]
[360957292,1747163432841,-500.0,0.00013673,2]
[360957295,1747163432854,-500.0,0.00013673,2]
[360957297,1747163432866,-500.0,0.00013697,2]
[360957299,1747163432879,-500.0,0.00013697,2]
[360957301,1747163432891,-500.0,0.00013697,2]
[360957304,1747163432903,-571.46702506,0.00013697,2]
[360957306,1747163432915,-500.0,0.00013697,2]
[360957308,1747163432927,-567.38422551,0.00013697,2]
[360957311,1747163432939,-169.585,0.00013697,2]
[360957313,1747163432951,-400.0,0.00013698,2]
[360957315,1747163432963,-400.0,0.00013698,2]
[360957318,1747163432976,-400.0,0.00013698,2]
[360957320,1747163432987,-400.0,0.00013698,2]
[360957322,1747163433000,-400.0,0.00013698,2]
[360957324,1747163433012,-1129.64,0.00013698,2]
[360957326,1747163433024,-400.0,0.00013698,2]
[360957328,1747163433036,-400.0,0.00013698,2]
[360957331,1747163433049,-400.0,0.00013698,2]
[360957333,1747163433064,-400.0,0.00013698,2]
[360957336,1747163433076,-400.0,0.00013698,2]
[360957338,1747163433089,-400.0,0.00013698,2]
[360957340,1747163433102,-400.0,0.00013698,2]
[360957342,1747163433113,-400.0,0.00013698,2]
[360957345,1747163433125,-544.08010736,0.00013698,2]
[360957347,1747163433138,-638.35,0.00013698,2]
[360957349,1747163433150,-400.0,0.00013698,2]
[360957352,1747163433162,-400.0,0.00013698,2]
[360957354,1747163433174,-400.0,0.00013698,2]
[360957356,1747163433186,-1112.99,0.00013698,2]
[360957358,1747163433199,-400.0,0.00013698,2]
[360957361,1747163433211,-400.0,0.00013698,2]
[360957363,1747163433224,-501.19877785,0.00013698,2]
[360957365,1747163433236,-400.0,0.00013698,2]
[360957368,1747163433248,-400.0,0.00013698,2]
[360957370,1747163433259,-400.0,0.00013698,2]
[360957372,1747163433275,-400.0,0.00013698,2]
[360957374,1747163433287,-400.0,0.00013698,2]
[360957377,1747163433300,-400.0,0.00013698,2]
[360957379,1747163433311,-400.0,0.00013698,2]
[360957381,1747163433322,-400.0,0.00013698,2]
[360957383,1747163433335,-470.7469232,0.00013698,2]
[360957386,1747163433348,-400.0,0.00013698,2]
[360957388,1747163433360,-400.0,0.00013698,2]
[360957390,1747163433371,-400.0,0.00013698,2]
[360957392,1747163433383,-400.0,0.00013698,2]
[360957394,1747163433395,-487.6,0.00013698,2]
[360957397,1747163433406,-400.0,0.00013698,2]
[360957399,1747163433418,-400.0,0.00013698,2]
[360957401,1747163433430,-400.0,0.00013698,2]
[360957403,1747163433442,-400.0,0.00013698,2]
[360957406,1747163433454,-1712.73,0.00013698,2]
[360957408,1747163433466,-400.0,0.00013698,2]
[360957410,1747163433478,-433.09,0.00013698,2]
[360957412,1747163433489,-400.0,0.00013698,2]
[360957414,1747163433501,-400.0,0.00013698,2]
[360957417,1747163433512,-400.0,0.00013698,2]
[360957419,1747163433522,-400.0,0.00013698,2]
[360957421,1747163433533,-473.82,0.00013698,2]
[360957423,1747163433543,-400.0,0.00013698,2]
[360957425,1747163433553,-400.0,0.00013698,2]
[360957427,1747163433564,-400.0,0.00013698,2]
[360957429,1747163433575,-400.0,0.00013698,2]
[360957431,1747163433585,-400.0,0.00013698,2]
[360957478,1747163434032,-400.0,0.00013698,2]
[360957482,1747163434065,-400.0,0.00013698,2]
[360957487,1747163434097,-400.0,0.00013698,2]
[360957490,1747163434117,-400.0,0.00013698,2]
[360957492,1747163434126,-400.0,0.00013698,2]
[360957494,1747163434136,-400.0,0.00013698,2]
[360957496,1747163434146,-400.0,0.00013698,2]
[360957498,1747163434155,-400.0,0.00013698,2]
[360957500,1747163434165,-400.0,0.00013698,2]
[360957502,1747163434174,-400.0,0.00013698,2]
[360957503,1747163434184,-400.0,0.00013698,2]
[360957504,1747163434194,-400.0,0.00013698,2]
[360957505,1747163434204,-400.0,0.00013698,2]
[360957506,1747163434213,-400.0,0.00013698,2]
[360957507,1747163434223,-400.0,0.00013698,2]
[360957508,1747163434233,-202.85854791,0.00013698,2]
[360957509,1747163434243,-400.0,0.00013698,2]
[360957511,1747163434252,-400.0,0.00013698,2]
[360957513,1747163434263,-400.0,0.00013698,2]
[360957515,1747163434276,-400.0,0.00013698,2]
[360957517,1747163434286,-400.0,0.00013698,2]
[360957518,1747163434295,-400.0,0.00013698,2]
[360957519,1747163434307,-400.0,0.00013698,2]
[360957520,1747163434316,-400.0,0.00013698,2]
[360957521,1747163434325,-400.0,0.00013698,2]
[360957522,1747163434334,-400.0,0.00013698,2]
[360957523,1747163434344,-400.0,0.00013698,2]
[360957524,1747163434354,-461.32,0.00013698,2]
[360957526,1747163434364,-400.0,0.00013698,2]
[360957528,1747163434374,-656.28,0.00013698,2]
[360957530,1747163434384,-400.0,0.00013698,2]
[360957532,1747163434394,-400.0,0.00013698,2]
[360957534,1747163434403,-400.0,0.00013698,2]
[360957536,1747163434414,-400.0,0.00013698,2]
[360957538,1747163434423,-400.0,0.00013698,2]
[360957540,1747163434433,-401.38330337,0.00013698,2]
[360957542,1747163434444,-400.0,0.00013698,2]
[360957544,1747163434453,-400.0,0.00013698,2]
[360957547,1747163434463,-400.0,0.00013698,2]
[360957549,1747163434473,-400.0,0.00013698,2]
[360957551,1747163434483,-292.49882101,0.00013698,2]
[360957553,1747163434493,-400.0,0.00013698,2]
[360957555,1747163434502,-400.0,0.00013698,2]
[360957556,1747163434513,-400.0,0.00013698,2]
[360957558,1747163434522,-443.79,0.00013698,2]
[360957560,1747163434532,-400.0,0.00013698,2]
[360957563,1747163434541,-400.0,0.00013698,2]
[360957565,1747163434552,-400.0,0.00013698,2]
[360957567,1747163434562,-400.0,0.00013698,2]
[360957569,1747163434571,-400.0,0.00013698,2]
[360957571,1747163434580,-504.7455237,0.00013698,2]
[360957573,1747163434591,-400.0,0.00013698,2]
[360957575,1747163434601,-400.0,0.00013698,2]
[360957577,1747163434611,-400.0,0.00013698,2]
[360957579,1747163434621,-400.0,0.00013698,2]
[360957581,1747163434630,-160.0,0.00013698,2]
[360957583,1747163434640,-400.0,0.00013698,2]
[360957585,1747163434649,-400.0,0.00013698,2]
[360957587,1747163434659,-400.0,0.00013698,2]
[360957589,1747163434669,-400.0,0.00013698,2]
[360957591,1747163434678,-509.19,0.00013698,2]
[360957593,1747163434690,-400.0,0.00013698,2]
[360957595,1747163434699,-410.13500949,0.00013698,2]
[360957597,1747163434709,-400.0,0.00013698,2]
[360957599,1747163434719,-400.0,0.00013698,2]
[360957601,1747163434728,-400.0,0.00013698,2]
[360957603,1747163434738,-400.0,0.00013698,2]
[360957605,1747163434747,-439.24129884,0.00013698,2]
[360957607,1747163434757,-400.0,0.00013698,2]
[360957610,1747163434767,-400.0,0.00013698,2]
[360957612,1747163434777,-400.0,0.00013698,2]
[360957613,1747163434787,-622.9,0.00013698,2]
[360957616,1747163434797,-400.0,0.00013698,2]
[360957618,1747163434807,-400.0,0.00013698,2]
[360957619,1747163434817,-400.0,0.00013698,2]
[360957621,1747163434826,-538.00813289,0.00013698,2]
[360957623,1747163434835,-400.0,0.00013698,2]
[360957625,1747163434845,-400.0,0.00013698,2]
[360957627,1747163434854,-678.63,0.00013698,2]
[360957629,1747163434863,-400.0,0.00013698,2]
[360957631,1747163434873,-400.0,0.00013698,2]
[360957633,1747163434882,-358.0,0.00013698,2]
[360957635,1747163434892,-400.08,0.00013698,2]
[360957637,1747163434902,-400.0,0.00013698,2]
[360957639,1747163434911,-400.0,0.00013698,2]
[360957641,1747163434921,-836.03,0.00013698,2]
[360957643,1747163434930,-400.0,0.00013698,2]
[360957645,1747163434940,-400.0,0.00013698,2]
[360957647,1747163434949,-469.11,0.00013698,2]
[360957648,1747163434959,-400.0,0.00013698,2]
[360957649,1747163434968,-400.0,0.00013698,2]
[360957650,1747163434978,-400.0,0.00013698,2]
[360957651,1747163434987,-400.0,0.00013698,2]
[360957652,1747163434997,-245.14008825,0.00013698,2]
[360957653,1747163435006,-400.0,0.00013698,2]
[360957654,1747163435015,-400.0,0.00013698,2]
[360957655,1747163435025,-400.0,0.00013698,2]
[360957657,1747163435035,-400.0,0.00013698,2]
[360957659,1747163435045,-400.0,0.00013698,2]
[360957661,1747163435054,-400.0,0.00013698,2]
[360957663,1747163435064,-1941.75,0.00013698,2]
[360957665,1747163435074,-492.09,0.00013698,2]
[360957667,1747163435084,-400.0,0.00013698,2]
[360957669,1747163435093,-400.0,0.00013698,2]
[360957671,1747163435103,-400.0,0.00013698,2]
[360957673,1747163435112,-400.0,0.00013698,2]
[360957675,1747163435121,-400.0,0.00013698,2]
[360957677,1747163435131,-400.57615409,0.00013698,2]
[360957679,1747163435140,-400.0,0.00013698,2]
[360957681,1747163435149,-520.88520255,0.00013698,2]
[360957683,1747163435159,-400.0,0.00013698,2]
[360957685,1747163435168,-604.34,0.00013698,2]
[360957688,1747163435180,-400.0,0.00013698,2]
[360957689,1747163435189,-400.0,0.00013698,2]
[360957690,1747163435199,-400.0,0.00013698,2]
[360957691,1747163435208,-743.05,0.00013698,2]
[360957692,1747163435218,-959.27,0.00013698,2]
[360957693,1747163435227,-400.0,0.00013698,2]
[360957694,1747163435237,-400.0,0.00013698,2]
[360957695,1747163435246,-912.38,0.00013698,2]
[360957696,1747163435256,-400.0,0.00013698,2]
[360957697,1747163435269,-400.0,0.00013698,2]
[360957698,1747163435279,-548.07156224,0.00013698,2]
[360957699,1747163435289,-1015.98,0.00013698,2]
[360957700,1747163435299,-400.0,0.00013698,2]
[360957701,1747163435311,-400.0,0.00013698,2]
[360957702,1747163435320,-1522.25,0.00013698,2]
[360957703,1747163435330,-400.0,0.00013698,2]
[360957704,1747163435340,-400.0,0.00013698,2]
[360957705,1747163435351,-400.0,0.00013698,2]
[360957706,1747163435360,-400.0,0.00013698,2]
[360957707,1747163435370,-433.62,0.00013698,2]
[360957708,1747163435380,-400.0,0.00013698,2]
[360957709,1747163435390,-400.0,0.00013698,2]
[360957710,1747163435400,-400.0,0.00013698,2]
[360957711,1747163435412,-400.0,0.00013698,2]
[360957712,1747163435421,-400.0,0.00013698,2]
[360957713,1747163435431,-400.0,0.00013698,2]
[360957714,1747163435441,-400.0,0.00013698,2]
[360957715,1747163435450,-400.0,0.00013698,2]
[360957716,1747163435459,-1000.0,0.00013698,2]
[360957717,1747163435469,-400.0,0.00013698,2]
[360957718,1747163435478,-400.0,0.00013698,2]
[360957719,1747163435488,-689.25,0.00013698,2]
[360957720,1747163435498,-518.68,0.00013698,2]
[360957721,1747163435507,-400.0,0.00013698,2]
[360957722,1747163435517,-1615.93,0.00013698,2]
[360957723,1747163435527,-400.0,0.00013698,2]
[360957724,1747163435536,-400.0,0.00013698,2]
[360957725,1747163435546,-2181.47,0.00013698,2]
[360957726,1747163435561,-400.0,0.00013698,2]
[360957727,1747163435571,-400.0,0.00013698,2]
[360957728,1747163435582,-400.0,0.00013698,2]
[360957729,1747163435592,-400.0,0.00013698,2]
[360957730,1747163435602,-400.0,0.00013698,2]
[360957731,1747163435612,-400.0,0.00013698,2]
[360957732,1747163435622,-449.99,0.00013698,2]
[360957733,1747163435632,-400.0,0.00013698,2]
[360957734,1747163435641,-400.0,0.00013698,2]
[360957735,1747163435651,-400.0,0.00013698,2]
[360957736,1747163435661,-495.98,0.00013698,2]
[360957737,1747163435670,-887.12,0.00013698,2]
[360957738,1747163435680,-400.0,0.00013698,2]
[360957739,1747163435690,-400.0,0.00013698,2]
[360957740,1747163435700,-400.0,0.00013698,2]
[360957741,1747163435710,-400.0,0.00013698,2]
[360957742,1747163435720,-400.0,0.00013698,2]
[360957743,1747163435729,-1045.98,0.00013698,2]
[360957744,1747163435739,-696.8,0.00013698,2]
[360957745,1747163435748,-705.19,0.00013698,2]
[360957746,1747163435758,-400.0,0.00013698,2]
[360957747,1747163435767,-154.30874281,0.00013698,2]
[360957748,1747163435777,-400.0,0.00013698,2]
[360957749,1747163435786,-400.0,0.00013698,2]
[360957750,1747163435796,-400.0,0.00013698,2]
[360957751,1747163435809,-400.0,0.00013698,2]
[360957752,1747163435818,-400.0,0.00013698,2]
[360957753,1747163435829,-400.0,0.00013698,2]
[360957754,1747163435838,-400.0,0.00013698,2]
[360957755,1747163435848,-400.0,0.00013698,2]
[360957756,1747163435858,-400.0,0.00013698,2]
[360957757,1747163435867,-400.0,0.00013698,2]
[360957758,1747163435877,-400.0,0.00013698,2]
[360957759,1747163435887,-400.0,0.00013698,2]
[360957760,1747163435896,-400.0,0.00013698,2]
[360957761,1747163435906,-400.0,0.00013698,2]
[360957762,1747163435916,-400.0,0.00013698,2]
[360957763,1747163435926,-444.11,0.00013698,2]
[360957764,1747163435936,-400.0,0.00013698,2]
[360957765,1747163435946,-400.0,0.00013698,2]
[360957766,1747163435955,-400.0,0.00013698,2]
[360957767,1747163435965,-755.42,0.00013698,2]
[360957768,1747163435979,-591.77,0.00013698,2]
[360957769,1747163435991,-400.0,0.00013698,2]
[360957770,1747163436001,-557.84,0.00013698,2]
[360957771,1747163436013,-1109.74,0.00013698,2]
[360957772,1747163436023,-400.0,0.00013698,2]
[360957773,1747163436034,-400.0,0.00013698,2]
[360957774,1747163436044,-1060.62,0.00013698,2]
[360957775,1747163436054,-635.56,0.00013698,2]
[360957776,1747163436068,-400.0,0.00013698,2]
[360957777,1747163436077,-400.0,0.00013698,2]
[360957778,1747163436088,-400.0,0.00013698,2]
[360957779,1747163436097,-400.0,0.00013698,2]
[360957780,1747163436109,-400.0,0.00013698,2]
[360957781,1747163436119,-400.0,0.00013698,2]
[360957782,1747163436129,-424.43,0.00013698,2]
[360957783,1747163436139,-503.45,0.00013698,2]
[360957784,1747163436148,-495.07,0.00013698,2]
[360957785,1747163436158,-400.0,0.00013698,2]
[360957786,1747163436168,-794.03,0.00013698,2]
[360957787,1747163436178,-400.0,0.00013698,2]
[360957788,1747163436187,-516.0483265,0.00013698,2]
[360957789,1747163436197,-967.8,0.00013698,2]
[360957790,1747163436207,-461.54063522,0.00013698,2]
[360957791,1747163436216,-400.0,0.00013698,2]
[360957792,1747163436226,-400.0,0.00013698,2]
[360957793,1747163436236,-503.63,0.00013698,2]
[360957794,1747163436245,-400.0,0.00013698,2]
[360957795,1747163436256,-400.0,0.00013698,2]
[360957796,1747163436269,-400.0,0.00013698,2]
[360957797,1747163436279,-400.0,0.00013698,2]
[360957798,1747163436289,-400.0,0.00013698,2]
[360957799,1747163436299,-400.0,0.00013698,2]
[360957800,1747163436311,-239.15417733,0.00013698,2]
[360957801,1747163436320,-400.0,0.00013698,2]
[360957802,1747163436330,-400.0,0.00013698,2]
[360957803,1747163436342,-400.0,0.00013698,2]
[360957804,1747163436351,-654.87,0.00013698,2]
[360957805,1747163436361,-400.0,0.00013698,2]
[360957806,1747163436370,-400.0,0.00013698,2]
[360957807,1747163436380,-495.54,0.00013698,2]
[360957808,1747163436390,-400.0,0.00013698,2]
[360957809,1747163436400,-507.83,0.00013698,2]
[360957810,1747163436410,-400.0,0.00013698,2]
[360957811,1747163436419,-400.0,0.00013698,2]
[360957812,1747163436429,-400.0,0.00013698,2]
[360957813,1747163436442,-400.0,0.00013698,2]
[360957814,1747163436456,-400.0,0.00013698,2]
[360957815,1747163436465,-400.0,0.00013698,2]
[360957816,1747163436475,-400.0,0.00013698,2]
[360957817,1747163436486,-738.84,0.00013698,2]
[360957818,1747163436496,-400.0,0.00013698,2]
[360957819,1747163436506,-400.0,0.00013698,2]
[360957820,1747163436515,-400.0,0.00013698,2]
[360957821,1747163436525,-517.79,0.00013698,2]
[360957822,1747163436535,-400.0,0.00013698,2]
[360957823,1747163436545,-400.0,0.00013698,2]
[360957824,1747163436558,-400.0,0.00013698,2]
[360957825,1747163436567,-400.0,0.00013698,2]
[360957826,1747163436577,-400.0,0.00013698,2]
[360957827,1747163436587,-413.92,0.00013698,2]